bitfinex-derivatives/quotes_BTCF0:USTF0_20240902
["timestamp","ask_amount","ask_price","bid_price","bid_amount"]
[1725260856328,0.060533,57822.0,57821.0,0.21854136]
[1725260857018,0.060533,57822.0,57821.0,0.21954136]
[1725260857430,0.060533,57822.0,57821.0,0.08775654]
[1725260858131,0.060533,57822.0,57821.0,0.21954109]
[1725260858327,0.060533,57822.0,57821.0,0.0014]
[1725260859231,0.060533,57822.0,57821.0,0.22053839]
[1725260859435,0.060533,57822.0,57821.0,0.08875654]
[1725260859729,0.060533,57822.0,57821.0,0.0024]
[1725260860128,0.25676469,57822.0,57821.0,0.0024]
[1725260860430,1.37560469,57822.0,57821.0,0.0024]
[1725260860627,1.43613769,57822.0,57821.0,0.0024]
[1725260860826,0.4104,57825.0,57821.0,0.0824]
[1725260860827,0.47093,57825.0,57821.0,0.0824]
[1725260861025,0.47093,57825.0,57824.0,0.08]
[1725260861226,0.47093,57825.0,57824.0,0.0804]
[1725260861227,0.4104,57825.0,57824.0,0.0804]
[1725260862720,0.4104,57825.0,57824.0,0.0814]
[1725260863120,0.3608,57825.0,57824.0,0.141931]
[1725260863325,0.110022,57833.0,57824.0,0.4432]
[1725260863525,0.110022,57833.0,57832.0,0.0004]
[1725260863935,0.29189537,57833.0,57832.0,0.0004]
[1725260864444,0.30559729,57833.0,57832.0,0.0004]
[1725260865546,0.30559729,57833.0,57832.0,0.0024]
[1725260865734,0.29559729,57833.0,57832.0,0.0024]
[1725260867845,0.29559729,57833.0,57832.0,0.0540888]
[1725260869641,0.29559729,57833.0,57832.0,0.05780053]
[1725260870545,0.37559729,57833.0,57832.0,0.00611173]
[1725260875655,0.73639729,57833.0,57832.0,0.00611173]
[1725260875843,0.62267337,57833.0,57832.0,0.00611173]
[1725260876037,0.54267337,57833.0,57832.0,0.00611173]
[1725260878845,0.68319537,57833.0,57832.0,0.00611173]
[1725260879955,0.73119537,57833.0,57832.0,0.00611173]
[1725260880657,0.73119537,57833.0,57832.0,0.07508253]
[1725260880845,0.73119537,57833.0,57832.0,0.07408253]
[1725260881354,0.73119537,57833.0,57832.0,0.07508253]
[1725260881856,0.73119537,57833.0,57832.0,0.07308253]
[1725260882254,0.73119537,57833.0,57832.0,0.00411173]
[1725260886152,0.65119537,57833.0,57832.0,0.00411173]
[1725260886446,0.73119537,57833.0,57832.0,0.00411173]
[1725260890061,0.68319537,57833.0,57832.0,0.00411173]
[1725260892358,0.68319537,57833.0,57832.0,0.09046827]
[1725260892763,0.68319537,57833.0,57832.0,0.00411173]
[1725260894156,0.68319537,57833.0,57832.0,0.06958635]
[1725260894661,0.68319537,57833.0,57832.0,0.0004]
[1725260894662,0.76961069,57833.0,57832.0,0.0004]
[1725260895052,0.76961069,57833.0,57832.0,0.06958635]
[1725260895257,0.68319537,57833.0,57832.0,0.06958635]
[1725260895464,0.68319537,57833.0,57832.0,0.0004]
[1725260895661,0.68319537,57833.0,57832.0,0.06959186]
[1725260896056,0.68319537,57833.0,57832.0,0.06959189]
[1725260896264,0.54267337,57833.0,57832.0,0.0004]
[1725260897654,0.54267337,57833.0,57832.0,0.060923]
[1725260900460,0.54267337,57833.0,57832.0,0.19269032]
[1725260900670,0.54267337,57833.0,57832.0,0.18409032]
[1725260900963,0.60319537,57833.0,57832.0,0.13176732]
[1725260902771,0.60319537,57833.0,57832.0,0.13176875]
[1725260905069,0.60319537,57833.0,57832.0,0.13176537]
[1725260906667,0.60319537,57833.0,57832.0,0.13176506]
[1725260908471,0.60319537,57833.0,57831.0,0.00360915]
[1725260908677,0.06956687,57832.0,57830.0,0.08648968]
[1725260908879,0.0004,57831.0,57830.0,0.08648968]
[1725260909080,0.18521673,57831.0,57830.0,0.21825463]
[1725260910674,0.2543836,57831.0,57830.0,0.08648968]
[1725260910873,0.18521673,57831.0,57830.0,0.21825674]
[1725260911472,0.18521673,57831.0,57830.0,0.21825572]
[1725260912180,0.18521673,57831.0,57830.0,0.08648968]
[1725260913386,0.18521673,57831.0,57830.0,0.21825447]
[1725260913688,0.18521673,57831.0,57830.0,0.21825446]
[1725260913876,0.18521673,57831.0,57830.0,0.08648968]
[1725260914184,0.18521673,57831.0,57830.0,0.2182546]
[1725260914381,0.18521673,57831.0,57830.0,0.08648968]
[1725260914688,0.18521673,57831.0,57830.0,0.2182548]
[1725260915571,0.18521673,57831.0,57830.0,0.13176512]
[1725260918281,0.18521673,57831.0,57830.0,0.13176705]
[1725260920080,0.18521673,57831.0,57829.0,0.06420264]
[1725260920279,0.18521673,57831.0,57830.0,0.13176553]
[1725260922985,0.18521673,57831.0,57830.0,0.13176539]
[1725260923482,0.18521673,57831.0,57830.0,0.21825828]
[1725260923880,0.25437507,57831.0,57830.0,0.08649289]
[1725260924083,0.18521673,57831.0,57830.0,0.21825802]
[1725260924682,0.18521673,57831.0,57830.0,0.13176513]
[1725260925391,0.25437507,57831.0,57830.0,0.21826421]
[1725260928784,0.39489907,57831.0,57830.0,0.21826421]
[1725260928987,0.39489907,57831.0,57787.0,0.21069859]
[1725260928988,0.060526,57829.0,57828.0,0.08649908]
[1725260929186,0.4412,57829.0,57823.0,0.08649908]
[1725260929498,0.4412,57829.0,57820.0,0.08649908]
[1725260929499,0.51035187,57824.0,57820.0,0.08649908]
[1725260929688,0.0004,57821.0,57820.0,0.08649908]
[1725260930084,0.0004,57821.0,57820.0,0.21829065]
[1725260930398,0.060536,57820.0,57817.0,0.0864693]
[1725260930589,0.060536,57819.0,57818.0,0.13179565]
[1725260931488,0.060536,57819.0,57818.0,0.21819011]
[1725260931689,0.060536,57819.0,57818.0,0.13179565]
[1725260931884,0.052536,57819.0,57818.0,0.14179565]
[1725260932395,0.052536,57819.0,57818.0,0.15179565]
[1725260932596,0.052536,57819.0,57818.0,0.23816147]
[1725260933494,0.052536,57819.0,57818.0,0.10636582]
[1725260933495,0.24617921,57819.0,57818.0,0.10636582]
[1725260933887,0.24617921,57819.0,57818.0,0.23815992]
[1725260934492,0.24617921,57819.0,57818.0,0.10636582]
[1725260935595,0.24617921,57819.0,57818.0,0.02]
[1725260935898,0.24617921,57819.0,57818.0,0.10636582]
[1725260936500,0.24617921,57819.0,57818.0,0.02]
[1725260943998,0.24617921,57819.0,57818.0,0.08901683]
[1725260945413,0.24617921,57819.0,57818.0,0.02]
[1725260946610,0.060531,57825.0,57818.0,0.02]
[1725260946611,0.060532,57824.0,57818.0,0.31815209]
[1725260946811,0.060532,57824.0,57823.0,0.3612]
[1725260947005,0.2596908,57824.0,57823.0,0.3612]
[1725260947205,0.2596908,57824.0,57823.0,4.1312]
[1725260947402,0.060532,57824.0,57823.0,4.1312]
[1725260947615,0.24677103,57824.0,57823.0,4.1312]
[1725260947802,0.24677103,57824.0,57823.0,3.7704]
[1725260948310,0.24677103,57824.0,57823.0,3.7744]
[1725260949025,0.24677103,57824.0,57823.0,3.7784]
[1725260949216,0.18623903,57824.0,57823.0,3.7784]
[1725260949720,0.19625359,57826.0,57823.0,3.838932]
[1725260949913,0.08362068,57827.0,57825.0,0.0004]
[1725260950111,0.08362068,57827.0,57826.0,0.0004]
[1725260950312,0.08362068,57827.0,57825.0,0.0004]
[1725260950610,0.0004,57826.0,57825.0,0.0004]
[1725260951204,0.18555328,57826.0,57825.0,0.0004]
[1725260952003,0.18555328,57826.0,57825.0,0.0024]
[1725260952206,0.18555328,57826.0,57825.0,0.0044]
[1725260955114,0.18555328,57826.0,57825.0,0.06493]
[1725260957515,0.18555328,57826.0,57825.0,0.06864885]
[1725260966429,0.18555328,57826.0,57825.0,0.13768305]
[1725260966833,0.24608228,57826.0,57825.0,0.0734342]
[1725260967017,0.31523415,57826.0,57825.0,0.0044]
[1725260967222,0.24608228,57826.0,57825.0,0.0044]
[1725260968330,0.24608228,57826.0,57825.0,0.05619219]
[1725260968730,0.24608228,57826.0,57825.0,0.0734342]
[1725260968919,0.24608228,57826.0,57825.0,0.0044]
[1725260969832,0.24608228,57826.0,57825.0,0.07346181]
[1725260970133,0.24608228,57826.0,57825.0,0.0044]
[1725260983738,0.31518245,57826.0,57825.0,0.0044]
[1725260989037,0.67598245,57826.0,57825.0,0.0044]
[1725260990741,0.60688228,57826.0,57825.0,0.0044]
[1725260992338,0.60688228,57826.0,57825.0,0.09076582]
[1725260993241,0.60688228,57826.0,57825.0,0.22255106]
[1725260994552,1.78621128,57826.0,57818.0,0.10379195]
[1725260994742,0.060537,57818.0,57817.0,0.08647738]
[1725260994940,0.060537,57818.0,57802.0,0.0495]
[1725260994941,0.140538,57817.0,57813.0,0.08647738]
[1725260995152,0.756838,57817.0,57812.0,0.08647738]
[1725260995348,0.756438,57817.0,57815.0,0.06915099]
[1725260995553,0.94364466,57817.0,57815.0,0.06915099]
[1725260995850,1.47133428,57817.0,57814.0,0.06915099]
[1725260996052,2.07133428,57817.0,57816.0,0.05212477]
[1725260996353,2.06233428,57817.0,57816.0,0.00025961]
[1725260996541,2.05333428,57817.0,57816.0,0.00025961]
[1725260997447,2.05333428,57817.0,57816.0,0.00125961]
[1725260997644,2.11387228,57817.0,57816.0,0.00125961]
[1725260998350,0.74804466,57817.0,57816.0,0.00125961]
[1725260998651,0.71804466,57817.0,57816.0,0.00125961]
[1725260998848,0.78710376,57817.0,57816.0,0.00125961]
[1725260999047,0.71310376,57817.0,57816.0,0.00225961]
[1725260999239,0.74560376,57817.0,57816.0,0.00225961]
[1725260999639,0.68254466,57817.0,57816.0,0.00225961]
[1725260999845,0.68619445,57817.0,57816.0,0.00225961]
[1725261000042,0.75525355,57817.0,57816.0,0.00225961]
[1725261000248,0.68619445,57817.0,57816.0,0.00225961]
[1725261000948,0.70619445,57817.0,57816.0,0.00225961]
[1725261001655,0.75479445,57817.0,57816.0,0.00225961]
[1725261003148,1.27367445,57817.0,57816.0,0.00225961]
[1725261004054,0.060541,57815.0,57809.0,0.05179799]
[1725261004350,0.3612,57810.0,57806.0,0.05179799]
[1725261004559,0.140949,57807.0,57806.0,0.05179799]
[1725261004746,0.06055,57806.0,57802.0,0.06915099]
[1725261004950,0.0804,57803.0,57802.0,0.06915099]
[1725261005349,0.26729083,57803.0,57802.0,0.06915099]
[1725261005750,0.26729083,57803.0,57801.0,0.11895099]
[1725261005959,0.0004,57802.0,57801.0,0.0498]
[1725261006357,0.18261501,57802.0,57801.0,0.110355]
[1725261006556,0.17661501,57802.0,57801.0,0.110355]
[1725261006757,0.17061501,57802.0,57801.0,0.110355]
[1725261007151,0.17061501,57802.0,57801.0,0.113355]
[1725261007666,0.17061501,57802.0,57801.0,0.116355]
[1725261008161,0.25061501,57802.0,57801.0,0.116355]
[1725261012360,0.25061501,57802.0,57801.0,0.066555]
[1725261013562,0.25061501,57802.0,57801.0,0.13550174]
[1725261015668,0.17061501,57802.0,57801.0,0.066555]
[1725261016262,0.25061501,57802.0,57801.0,0.066555]
[1725261021070,0.25061501,57802.0,57801.0,0.19837919]
[1725261022859,0.25061501,57802.0,57801.0,0.15289973]
[1725261023264,0.25061501,57802.0,57801.0,0.19838649]
[1725261023772,0.25061501,57802.0,57801.0,0.19838727]
[1725261024766,0.25061501,57802.0,57801.0,0.20202685]
[1725261027080,0.25061501,57802.0,57801.0,0.20202636]
[1725261035284,0.25061501,57802.0,57801.0,0.14147136]
[1725261035879,0.25061501,57802.0,57801.0,0.13783178]
[1725261037976,0.25061501,57802.0,57801.0,0.13783334]
[1725261039984,0.61141501,57802.0,57801.0,0.13783334]
[1725261040374,0.25061501,57802.0,57801.0,0.13783334]
[1725261040687,0.61141501,57802.0,57801.0,0.13783334]
[1725261041784,0.61505998,57802.0,57801.0,0.13783334]
[1725261043200,0.61505998,57802.0,57792.0,0.3608]
[1725261043201,0.51904,57801.0,57790.0,0.10379195]
[1725261043483,0.802,57791.0,57788.0,0.08649874]
[1725261043787,0.802,57791.0,57785.0,0.10379195]
[1725261043788,0.08,57789.0,57783.0,0.08651042]
[1725261043986,0.3612,57784.0,57783.0,0.08651042]
[1725261044196,0.060574,57783.0,57778.0,0.08651042]
[1725261044385,0.0004,57779.0,57778.0,0.08676978]
[1725261044690,0.08,57779.0,57778.0,0.08676978]
[1725261044986,0.27550359,57779.0,57778.0,0.21865112]
[1725261045183,0.26450359,57779.0,57778.0,0.00025936]
[1725261045493,0.27550359,57779.0,57778.0,0.00025936]
[1725261045983,0.27550359,57779.0,57778.0,0.00425936]
[1725261050088,0.27550359,57779.0,57778.0,0.07318802]
[1725261050985,0.19550359,57779.0,57778.0,0.07318802]
[1725261051187,0.27550359,57779.0,57778.0,0.00425936]
[1725261051386,0.08,57779.0,57778.0,0.00425936]
[1725261051586,0.26165422,57779.0,57778.0,0.00425936]
[1725261052087,0.18165422,57779.0,57778.0,0.58407836]
[1725261052285,0.18165422,57779.0,57778.0,1.18407836]
[1725261052487,0.0004,57784.0,57783.0,0.060574]
[1725261052686,0.0004,57784.0,57783.0,3.910574]
[1725261052895,0.0004,57784.0,57783.0,3.910974]
[1725261053085,0.0004,57784.0,57783.0,3.959274]
[1725261053581,0.0024,57784.0,57783.0,3.959274]
[1725261054595,0.0054,57784.0,57783.0,3.879274]
[1725261055689,0.0054,57784.0,57783.0,3.959274]
[1725261056596,0.0024,57784.0,57783.0,3.959274]
[1725261056799,0.0034,57784.0,57783.0,3.965274]
[1725261057183,0.0024,57784.0,57783.0,3.959274]
[1725261057387,0.0034,57784.0,57783.0,3.964274]
[1725261058399,0.0024,57784.0,57783.0,5.21729072]
[1725261059692,0.0024,57784.0,57783.0,5.32108267]
[1725261059888,0.0014,57784.0,57783.0,5.37608267]
[1725261060087,0.0024,57784.0,57783.0,5.27729072]
[1725261060398,0.0024,57784.0,57783.0,5.38067412]
[1725261060594,0.0024,57784.0,57783.0,5.38066004]
[1725261060800,0.0024,57784.0,57783.0,5.38065987]
[1725261061095,0.0024,57784.0,57783.0,5.27727664]
[1725261062401,0.0014,57784.0,57783.0,5.27527664]
[1725261062602,0.0024,57784.0,57783.0,5.27727664]
[1725261063196,0.0024,57784.0,57783.0,5.28327664]
[1725261064293,0.00025936,57789.0,57783.0,5.28327664]
[1725261064294,0.00025936,57789.0,57788.0,0.060569]
[1725261064490,0.00025936,57789.0,57788.0,0.69361164]
[1725261064698,0.00025936,57789.0,57788.0,1.81273164]
[1725261064900,0.00025936,57789.0,57788.0,1.72133164]
[1725261065905,0.00025936,57789.0,57788.0,1.72833164]
[1725261066805,0.00025936,57789.0,57788.0,1.21821164]
[1725261067008,0.00125936,57789.0,57788.0,1.73733164]
[1725261068711,0.00125936,57789.0,57788.0,1.37653164]
[1725261068908,0.00125936,57789.0,57788.0,1.13733164]
[1725261069207,0.00125936,57789.0,57788.0,1.73733164]
[1725261073311,0.00125936,57789.0,57788.0,1.74109335]
[1725261074208,0.00125936,57789.0,57788.0,1.84450757]
[1725261074608,0.00125936,57789.0,57788.0,1.74109335]
[1725261074907,0.00125936,57789.0,57788.0,1.88109335]
[1725261076511,0.00125936,57789.0,57788.0,1.52029335]
[1725261076709,0.00125936,57789.0,57788.0,1.88109335]
[1725261077823,0.00125936,57789.0,57788.0,2.04155606]
[1725261078004,1.0,57800.0,57799.0,0.060557]
[1725261078209,1.0,57800.0,57799.0,0.55358095]
[1725261079911,1.0,57800.0,57799.0,0.63358095]
[1725261084418,1.0,57800.0,57799.0,1.25606037]
[1725261085122,1.0,57800.0,57799.0,1.2561038]
[1725261085331,1.004,57800.0,57799.0,1.2561038]
[1725261086111,1.009,57800.0,57799.0,1.2561038]
[1725261087111,1.009,57800.0,57799.0,1.25971012]
[1725261087310,1.009,57800.0,57799.0,0.74067012]
[1725261087823,1.009,57800.0,57799.0,0.74065489]
[1725261088116,1.009,57800.0,57799.0,0.74068522]
[1725261088324,1.009,57800.0,57799.0,0.63717204]
[1725261088825,1.009,57800.0,57799.0,0.27637204]
[1725261089021,1.009,57800.0,57799.0,0.99797204]
[1725261090618,1.009,57800.0,57799.0,0.91797204]
[1725261090921,1.009,57800.0,57799.0,0.99797204]
[1725261091112,1.009,57800.0,57798.0,0.10352606]
[1725261091113,0.060557,57799.0,57796.0,0.08630685]
[1725261091318,0.0004,57797.0,57794.0,0.0002596]
[1725261091514,0.08,57795.0,57794.0,0.0002596]
[1725261091716,0.0804,57795.0,57794.0,0.00387656]
[1725261091918,0.08,57795.0,57794.0,0.0002596]
[1725261092323,0.26107344,57795.0,57794.0,0.0022596]
[1725261092814,0.26107344,57795.0,57794.0,0.0002596]
[1725261093017,0.62187344,57795.0,57794.0,0.0022596]
[1725261094530,0.62187344,57795.0,57794.0,0.00590041]
[1725261094822,0.62187344,57795.0,57794.0,0.0022596]
[1725261095323,0.62187344,57795.0,57794.0,0.07131141]
[1725261095721,0.62187344,57795.0,57794.0,0.0022596]
[1725261096227,0.62187344,57795.0,57794.0,0.07130577]
[1725261096523,0.62187344,57795.0,57794.0,0.0022596]
[1725261099123,0.54187344,57795.0,57794.0,0.0022596]
[1725261099433,0.62187344,57795.0,57794.0,0.0022596]
[1725261099929,0.62187344,57795.0,57794.0,0.0032596]
[1725261103027,0.62187344,57795.0,57794.0,0.0022596]
[1725261103332,0.62187344,57795.0,57794.0,0.05399873]
[1725261103833,0.62187344,57795.0,57794.0,0.05299873]
[1725261107634,0.62187344,57795.0,57794.0,0.0012596]
[1725261112037,0.62187344,57795.0,57794.0,3.7712596]
[1725261115244,0.62187344,57795.0,57794.0,3.84030577]
[1725261116934,0.54187344,57795.0,57794.0,3.7712596]
[1725261117134,0.62187344,57795.0,57794.0,3.7712596]
[1725261120140,0.62187344,57795.0,57794.0,3.85756645]
[1725261121147,0.62187344,57795.0,57794.0,3.90311387]
[1725261121543,0.68243444,57795.0,57794.0,3.90311387]
[1725261121748,0.68243444,57795.0,57794.0,3.98964889]
[1725261121938,0.68243444,57795.0,57794.0,3.98964887]
[1725261122144,0.68243444,57795.0,57794.0,3.90311387]
[1725261124255,0.32163444,57795.0,57794.0,3.90311387]
[1725261124442,0.32163444,57795.0,57794.0,3.90311437]
[1725261126651,0.32163444,57795.0,57794.0,3.7712596]
[1725261127844,0.68243444,57795.0,57794.0,3.7712596]
[1725261129441,0.32163444,57795.0,57794.0,3.7712596]
[1725261129741,0.68243444,57795.0,57794.0,3.7712596]
[1725261130337,0.68243444,57795.0,57794.0,0.0012596]
[1725261133550,0.75163268,57795.0,57794.0,0.0012596]
[1725261133744,0.68243444,57795.0,57794.0,0.0012596]
[1725261133943,0.75163383,57795.0,57794.0,0.0012596]
[1725261134353,0.68243444,57795.0,57794.0,0.0012596]
[1725261134562,0.81163301,57795.0,57794.0,0.0012596]
[1725261134744,0.81163301,57795.0,57784.0,0.10352606]
[1725261134745,0.51908,57794.0,57784.0,0.10352606]
[1725261134946,0.060575,57782.0,57779.0,0.10352606]
[1725261135252,0.140575,57782.0,57781.0,0.17738166]
[1725261135442,0.32680989,57782.0,57781.0,0.0455]
[1725261135842,0.060576,57781.0,57779.0,0.08649051]
[1725261136050,0.0004,57780.0,57779.0,0.08649051]
[1725261136254,0.18784251,57780.0,57779.0,0.08649051]
[1725261136451,0.18784251,57780.0,57778.0,0.08649051]
[1725261136452,0.17684251,57780.0,57778.0,0.08649051]
[1725261136643,0.08,57779.0,57778.0,0.08649051]
[1725261137143,0.27067787,57779.0,57778.0,0.08649051]
[1725261137552,0.27067787,57779.0,57777.0,0.08649051]
[1725261137744,0.27067787,57779.0,57778.0,0.09749051]
[1725261138052,0.26167787,57779.0,57778.0,0.09749051]
[1725261138247,0.26167787,57779.0,57778.0,0.011]
[1725261138853,0.26267787,57779.0,57778.0,0.011]
[1725261139350,0.26267787,57779.0,57777.0,0.09549051]
[1725261139351,0.26367787,57779.0,57777.0,0.009]
[1725261140144,0.26367787,57779.0,57776.0,0.09044703]
[1725261141553,0.26367787,57779.0,57776.0,0.00395652]
[1725261142153,0.26367787,57779.0,57776.0,0.0002596]
[1725261142353,0.060579,57778.0,57777.0,0.06907419]
[1725261142548,0.0004,57778.0,57776.0,0.0002596]
[1725261142860,0.20052623,57778.0,57776.0,0.0002596]
[1725261143449,0.20152623,57778.0,57776.0,0.0002596]
[1725261143957,0.06058,57777.0,57776.0,0.0002596]
[1725261144257,0.25145987,57777.0,57776.0,0.0002596]
[1725261145265,0.25145987,57777.0,57776.0,0.05204133]
[1725261145555,0.25145987,57777.0,57776.0,0.0002596]
[1725261146062,1.37269987,57777.0,57776.0,0.0002596]
[1725261147149,1.48269987,57777.0,57776.0,0.0002596]
[1725261147654,1.48169987,57777.0,57776.0,0.0002596]
[1725261148161,1.48169987,57777.0,57765.0,0.21617419]
[1725261148162,0.060582,57775.0,57765.0,0.19887216]
[1725261148359,0.4412,57766.0,57765.0,0.1471]
[1725261148660,0.62390077,57766.0,57765.0,0.1471]
[1725261149861,0.68449277,57766.0,57765.0,0.1471]
[1725261150462,0.68549277,57766.0,57765.0,0.1471]
[1725261150853,0.60549277,57766.0,57765.0,0.1471]
[1725261151053,0.68549277,57766.0,57765.0,0.1471]
[1725261151257,0.68549277,57766.0,57765.0,0.19879251]
[1725261151458,0.68549277,57766.0,57765.0,0.1471]
[1725261151658,0.68549277,57766.0,57765.0,0.19879229]
[1725261153859,0.68549277,57766.0,57765.0,0.1471]
[1725261154058,0.68549277,57766.0,57765.0,0.0481]
[1725261156169,0.68449277,57766.0,57765.0,0.0481]
[1725261157375,0.68449277,57766.0,57763.0,0.05169229]
[1725261157673,0.0004,57764.0,57763.0,0.05169229]
[1725261158160,0.18933764,57764.0,57763.0,0.05169229]
[1725261158759,0.55013764,57764.0,57763.0,0.05169229]
[1725261159560,0.55013764,57764.0,57762.0,3.77088]
[1725261159866,0.0804,57763.0,57761.0,0.00374438]
[1725261160057,0.0804,57763.0,57760.0,0.0002596]
[1725261160058,0.0004,57762.0,57760.0,0.0002596]
[1725261160260,0.0004,57761.0,57760.0,0.0002596]
[1725261160457,0.19215813,57762.0,57760.0,0.0002596]
[1725261160659,0.19175813,57761.0,57760.0,0.0002596]
[1725261161371,0.19175813,57761.0,57760.0,3.74301794]
[1725261161865,0.19275813,57761.0,57760.0,3.74301794]
[1725261162069,0.19375813,57761.0,57760.0,3.74301794]
[1725261162372,0.19375813,57761.0,57760.0,3.67394375]
[1725261171365,0.19375813,57761.0,57760.0,3.76043426]
[1725261171560,0.19375813,57761.0,57760.0,3.67394375]
[1725261171774,0.19375813,57761.0,57760.0,3.76043426]
[1725261172474,0.19375813,57761.0,57760.0,3.8058675]
[1725261173074,0.25435513,57761.0,57760.0,0.08670289]
[1725261173274,0.38435513,57761.0,57760.0,0.0002596]
[1725261175271,0.61515513,57761.0,57760.0,0.0002596]
[1725261175478,0.060602,57756.0,57755.0,0.08644329]
[1725261175683,0.5512,57756.0,57752.0,0.08644329]
[1725261175879,0.0804,57753.0,57751.0,0.08884329]
[1725261176076,0.0004,57752.0,57751.0,0.09243713]
[1725261176276,0.18938225,57752.0,57751.0,0.00599384]
[1725261177080,0.24998825,57752.0,57751.0,0.00599384]
[1725261178179,0.25098825,57752.0,57751.0,0.00599384]
[1725261178878,0.25198825,57752.0,57751.0,0.00599384]
[1725261180183,0.25198825,57752.0,57751.0,0.0024]
[1725261180773,0.25566103,57752.0,57751.0,0.0024]
[1725261185177,0.33566103,57752.0,57751.0,0.0024]
[1725261194287,0.33566103,57752.0,57751.0,0.08888186]
[1725261196590,0.33566103,57752.0,57751.0,0.22082986]
[1725261197197,0.33566103,57752.0,57751.0,0.08888186]
[1725261197388,0.33566103,57752.0,57751.0,0.22083232]
[1725261197797,0.33566103,57752.0,57751.0,0.08888186]
[1725261198389,0.33566103,57752.0,57751.0,0.22083262]
[1725261198593,0.69646103,57752.0,57751.0,0.0024]
[1725261198898,0.69646103,57752.0,57751.0,0.08888186]
[1725261198899,0.33566103,57752.0,57751.0,0.08888186]
[1725261199102,0.33566103,57752.0,57751.0,0.0024]
[1725261199298,0.33566103,57752.0,57751.0,0.08888186]
[1725261199498,0.33566103,57752.0,57751.0,0.2208335]
[1725261199900,0.33566103,57752.0,57751.0,0.08888186]
[1725261200297,0.33566103,57752.0,57751.0,0.22083367]
[1725261200695,0.33566103,57752.0,57751.0,0.13435181]
[1725261200890,0.33566103,57752.0,57751.0,0.22084702]
[1725261201297,0.33566103,57752.0,57751.0,0.13435181]
[1725261207505,0.33566103,57752.0,57751.0,0.13435124]
[1725261207810,0.33566103,57752.0,57751.0,0.13435074]
[1725261210211,0.69646103,57752.0,57751.0,0.13435074]
[1725261213004,0.77646103,57752.0,57751.0,0.08900659]
[1725261213514,0.77646103,57752.0,57751.0,0.0024]
[1725261214010,0.69646103,57752.0,57751.0,0.0024]
[1725261214212,0.74646103,57752.0,57751.0,0.0024]
[1725261216509,0.80706703,57752.0,57751.0,0.0024]
[1725261216914,0.75706703,57752.0,57751.0,0.0024]
[1725261218520,0.86706703,57752.0,57751.0,0.0024]
[1725261218910,0.93611567,57752.0,57751.0,0.0024]
[1725261219106,0.93511567,57752.0,57751.0,0.0024]
[1725261219315,0.93611567,57752.0,57751.0,0.0024]
[1725261219521,0.86706703,57752.0,57751.0,0.0024]
[1725261219724,0.75706703,57752.0,57751.0,0.0024]
[1725261221727,0.87706703,57752.0,57751.0,0.0024]
[1725261223625,0.51626703,57752.0,57751.0,0.0024]
[1725261223922,0.87706703,57752.0,57751.0,0.0024]
[1725261224514,0.69646103,57752.0,57751.0,0.0024]
[1725261224821,0.61646103,57752.0,57751.0,0.0024]
[1725261225125,0.61646103,57752.0,57751.0,0.08900659]
[1725261225126,0.69278825,57752.0,57751.0,0.08900659]
[1725261225322,0.69278825,57752.0,57751.0,0.22096003]
[1725261225521,0.69278825,57752.0,57751.0,0.13435344]
[1725261226416,0.69278825,57752.0,57751.0,0.13435134]
[1725261229528,0.69652646,57752.0,57751.0,0.13806971]
[1725261230228,0.33572646,57752.0,57751.0,0.13806971]
[1725261230620,0.69652646,57752.0,57751.0,0.13806971]
[1725261231223,0.69652646,57752.0,57751.0,0.13806967]
[1725261236137,0.69652646,57752.0,57751.0,0.13806768]
[1725261238430,0.69278825,57752.0,57751.0,0.13806768]
[1725261241132,0.63218225,57752.0,57751.0,0.13434931]
[1725261243840,0.63218225,57752.0,57751.0,0.13434394]
[1725261244044,0.63218225,57752.0,57751.0,0.0024]
[1725261244340,0.63218225,57752.0,57751.0,0.13434256]
[1725261244540,0.27138225,57752.0,57751.0,0.13434256]
[1725261245445,0.19138225,57752.0,57751.0,0.19495056]
[1725261245941,0.19138225,57752.0,57751.0,0.063008]
[1725261247343,0.27138225,57752.0,57751.0,0.063008]
[1725261248532,0.19138225,57752.0,57751.0,0.66900253]
[1725261248728,0.19138225,57752.0,57751.0,0.82801619]
[1725261249043,0.002,57752.0,57751.0,1.34150166]
[1725261250441,0.002,57752.0,57751.0,1.34149964]
[1725261252143,0.002,57752.0,57751.0,0.82201964]
[1725261252435,0.002,57752.0,57751.0,1.34149964]
[1725261254840,0.002,57752.0,57751.0,1.50207521]
[1725261257635,0.0004,57753.0,57752.0,0.060606]
[1725261257842,0.0004,57753.0,57752.0,0.97967321]
[1725261258042,0.0004,57753.0,57752.0,1.57967321]
[1725261258442,0.0004,57753.0,57752.0,1.5796507]
[1725261258959,0.0024,57753.0,57752.0,1.9404507]
[1725261260249,0.0002596,57757.0,57752.0,1.78845518]
[1725261260453,0.4408,57772.0,57761.0,0.140597]
[1725261260744,0.4408,57772.0,57766.0,0.060591]
[1725261260745,0.08,57772.0,57766.0,0.060591]
[1725261260951,0.08,57772.0,57770.0,0.08640572]
[1725261261147,0.19035705,57771.0,57769.0,0.3608]
[1725261261539,0.19035705,57771.0,57770.0,0.06909012]
[1725261262051,0.19035705,57771.0,57770.0,0.06909112]
[1725261262249,0.19035705,57771.0,57770.0,0.06906448]
[1725261263549,0.19035705,57771.0,57769.0,0.3608]
[1725261263854,0.018,57771.0,57770.0,0.141588]
[1725261264352,0.018,57771.0,57770.0,0.660868]
[1725261264755,0.009,57771.0,57770.0,0.660868]
[1725261265056,0.017,57771.0,57770.0,0.660868]
[1725261265477,0.0465,57783.0,57770.0,0.660868]
[1725261265478,0.3262,57791.0,57771.0,0.51928]
[1725261265649,0.3262,57791.0,57770.0,1.17367744]
[1725261265650,0.4527,57794.0,57788.0,0.08]
[1725261265845,0.1851131,57789.0,57788.0,0.08]
[1725261266444,0.08,57792.0,57788.0,0.08]
[1725261266758,0.19219141,57789.0,57788.0,0.08]
[1725261266954,0.08,57792.0,57788.0,0.081]
[1725261267260,0.19219141,57790.0,57788.0,0.001]
[1725261267450,0.19219141,57791.0,57788.0,0.001]
[1725261267645,0.08,57792.0,57788.0,0.001]
[1725261267954,0.001,57789.0,57788.0,0.001]
[1725261268358,0.20115092,57789.0,57788.0,0.001]
[1725261268749,0.20115092,57789.0,57786.0,0.08]
[1725261268949,0.20015092,57789.0,57786.0,0.08]
[1725261269150,0.20015092,57789.0,57786.0,0.13166682]
[1725261269350,0.19528665,57791.0,57786.0,0.13166682]
[1725261269551,0.08,57789.0,57786.0,0.13166682]
[1725261269756,0.082,57789.0,57786.0,0.13166682]
[1725261270057,0.18541762,57788.0,57786.0,0.13166682]
[1725261270261,0.18541762,57788.0,57787.0,0.08]